bitfinex/quotes_ETHUSD_20250913
["timestamp","ask_amount","ask_price","bid_price","bid_amount"]
[1757788507638,9.20191325,4636.9,4636.8,0.382]
[1757788507853,3.4323,4636.9,4636.8,0.382]
[1757788508037,6.612,4636.9,4636.8,0.8143]
[1757788508260,8.76861325,4636.9,4636.8,0.8143]
[1757788508465,6.612,4636.9,4636.8,0.8143]
[1757788508987,8.76861325,4636.9,4636.8,0.8143]
[1757788509139,5.76861325,4636.9,4636.8,0.382]
[1757788509341,3.612,4636.9,4636.8,0.382]
[1757788509581,5.76861325,4636.9,4636.8,0.382]
[1757788510252,5.76861325,4636.9,4636.8,0.08]
[1757788510438,6.06621325,4636.9,4636.8,0.08]
[1757788512044,5.76861325,4636.9,4636.8,0.08]
[1757788512369,6.52831325,4636.9,4636.8,0.08]
[1757788512590,6.06621325,4636.9,4636.8,0.08]
[1757788513245,5.76861325,4636.9,4636.8,0.08]
[1757788513644,6.52831325,4636.9,4636.8,0.08]
[1757788514176,3.612,4636.9,4636.8,0.382]
[1757788514471,5.76661325,4636.9,4636.8,0.383]
[1757788514672,6.06421325,4636.9,4636.8,0.081]
[1757788515178,6.52631325,4636.9,4636.8,0.081]
[1757788515378,6.06421325,4636.9,4636.8,0.081]
[1757788515547,5.76661325,4636.9,4636.8,0.081]
[1757788515873,6.06541325,4636.9,4636.8,0.081]
[1757788516378,6.49561325,4636.9,4636.8,0.081]
[1757788516879,6.96191325,4636.9,4636.8,0.081]
[1757788517375,6.96091325,4636.9,4636.8,0.081]
[1757788518082,18.05097687,4636.9,4636.8,0.081]
[1757788518258,16.47691324,4636.9,4636.8,0.081]
[1757788518961,16.56322831,4636.9,4636.8,0.081]
[1757788520000,11.75892831,4636.9,4636.8,0.3692]
[1757788520165,15.36692831,4636.9,4636.8,0.3692]
[1757788520888,12.36692831,4636.9,4636.8,0.3692]
[1757788521194,12.28061324,4636.9,4636.8,0.3692]
[1757788521678,8.67261324,4636.9,4636.8,0.3692]
[1757788521888,12.28061324,4636.9,4636.8,0.3692]
[1757788523489,12.48113929,4636.9,4636.8,0.081]
[1757788524254,12.77993929,4636.9,4636.8,0.081]
[1757788525008,13.21013929,4636.9,4636.8,0.081]
[1757788525548,12.77993929,4636.9,4636.8,0.081]
[1757788529700,12.48113929,4636.9,4636.8,0.3842]
[1757788530013,10.32452604,4636.9,4636.8,0.3842]
[1757788530210,12.48113929,4636.9,4636.8,0.3842]
[1757788531010,12.47813929,4636.9,4636.8,0.3842]
[1757788532670,12.77153929,4636.9,4636.8,0.081]
[1757788533290,13.65863929,4636.9,4636.8,0.081]
[1757788533988,10.05463929,4636.9,4636.8,0.081]
[1757788534206,12.47713929,4636.9,4636.8,0.081]
[1757788535608,12.47713929,4636.9,4636.8,0.3842]
[1757788536675,12.47613929,4636.9,4636.8,0.3842]
[1757788538617,12.47513929,4636.9,4636.8,0.3842]
[1757788539886,10.31852604,4636.9,4636.8,0.3842]
[1757788540082,12.47413929,4636.9,4636.8,0.3842]
[1757788542326,12.47413929,4636.9,4636.8,0.081]
[1757788543699,12.47313929,4636.9,4636.8,0.081]
[1757788544522,8.87413929,4636.9,4636.8,0.3842]
[1757788544720,12.47313929,4636.9,4636.8,0.3842]
[1757788545226,12.47313929,4636.9,4636.8,0.081]
[1757788545529,12.47313929,4636.9,4636.8,0.06229406]
[1757788547331,12.47313929,4636.9,4636.8,0.36869406]
[1757788548034,8.87413929,4636.9,4636.8,0.36869406]
[1757788548237,10.31452604,4636.9,4636.8,0.36869406]
[1757788548404,12.47113929,4636.9,4636.8,0.36869406]
[1757788549108,6.71752604,4636.9,4636.8,0.37239406]
[1757788549309,0.4901,4637.3,4636.8,1.30229406]
[1757788549523,0.4901,4637.3,4637.0,2.1565561]
[1757788549836,0.002,4637.4,4637.2,0.3101]
[1757788550033,3.597,4637.3,4637.2,0.3101]
[1757788550230,3.597,4637.3,4637.2,0.51202792]
[1757788550737,3.597,4637.3,4637.2,0.97272792]
[1757788550907,3.597,4637.3,4637.2,1.34667228]
[1757788551234,3.597,4637.3,4637.2,1.14474436]
[1757788552130,3.597,4637.3,4637.2,1.61394436]
[1757788552331,3.597,4637.3,4637.2,1.24]
[1757788552943,3.597,4637.3,4637.2,3.39647373]
[1757788553145,0.002,4637.4,4637.2,2.93577373]
[1757788553346,0.002,4637.4,4637.3,3.1078915]
[1757788553844,0.002,4637.4,4637.3,3.4179915]
[1757788554041,0.002,4637.4,4637.3,4.01173068]
[1757788554609,0.002,4637.4,4637.3,7.88936641]
[1757788555543,0.002,4637.4,4637.3,8.14506046]
[1757788558243,0.002,4637.4,4637.3,11.74106046]
[1757788559441,0.002,4637.4,4637.3,11.74006046]
[1757788565041,0.002,4637.4,4637.3,41.74006046]
[1757788566466,0.002,4637.4,4637.3,37.68436046]
[1757788566631,0.002,4637.4,4637.3,41.27936046]
[1757788566837,0.002,4637.4,4637.3,41.74006046]
[1757788567047,0.002,4637.4,4637.3,41.27936046]
[1757788567228,0.002,4637.4,4637.3,41.74006046]
[1757788570124,0.3015,4637.4,4637.3,6.90506046]
[1757788570325,1.2401,4637.4,4636.9,1.655]
[1757788570523,0.9386,4637.3,4637.0,3.594]
[1757788570742,0.2995,4637.1,4637.0,3.594]
[1757788571031,1.2381,4637.1,4637.0,3.594]
[1757788571401,1.2381,4637.1,4637.0,5.95121687]
[1757788572651,1.2381,4637.1,4637.0,0.20065013]
[1757788572840,1.2381,4637.1,4636.9,0.20065013]
[1757788573029,1.2381,4637.1,4637.0,0.20065013]
[1757788573233,0.2995,4637.1,4637.0,0.20065013]
[1757788573445,0.2995,4637.1,4636.9,0.20065013]
[1757788573648,0.2995,4637.1,4637.0,0.20065013]
[1757788573848,1.2381,4637.1,4637.0,0.20065013]
[1757788578358,1.2381,4637.1,4636.8,0.06229406]
[1757788581084,0.4296,4637.0,4636.8,0.06229406]
[1757788581254,0.55182,4637.0,4636.8,0.06229406]
[1757788581582,0.8935,4636.9,4636.8,0.06229406]
[1757788581789,3.05011325,4636.9,4636.8,0.06229406]
[1757788581966,3.47971325,4636.9,4636.8,0.06229406]
[1757788584972,1.3231,4636.9,4636.8,0.06229406]
[1757788585183,0.8935,4636.9,4636.8,0.06229406]
[1757788585875,1.3231,4636.9,4636.8,0.06229406]
[1757788590705,0.408,4636.9,4636.8,0.06229406]
[1757788590917,0.1072,4636.9,4636.8,0.06229406]
[1757788591207,0.408,4636.9,4636.8,0.06229406]
[1757788591404,1.3231,4636.9,4636.8,0.06229406]
[1757788594805,0.408,4636.9,4636.8,0.06229406]
[1757788595240,0.1072,4636.9,4636.8,0.06229406]
[1757788595392,0.002,4637.1,4636.8,0.92865771]
[1757788595593,0.002,4637.1,4636.8,3.51828288]
[1757788596137,0.002,4637.1,4636.8,3.06371629]
[1757788596986,0.002,4637.1,4636.8,0.90709112]
[1757788597212,0.002,4637.1,4637.0,2.15656674]
[1757788597421,0.002,4637.1,4637.0,2.80448897]
[1757788597623,0.002,4637.1,4637.0,3.54198897]
[1757788597844,0.002,4637.1,4637.0,3.85822464]
[1757788599547,0.002,4637.1,4637.0,1.7016579]
[1757788599737,0.002,4637.1,4637.0,1.2686579]
[1757788601056,0.002,4637.1,4637.0,3.42522464]
[1757788601561,0.002,4637.1,4637.0,1.2686579]
[1757788601758,0.002,4637.1,4637.0,3.42522464]
[1757788602462,0.002,4637.1,4637.0,1.2686579]
[1757788603458,0.002,4637.1,4637.0,3.42522464]
[1757788603756,0.3028,4637.1,4637.0,0.9641579]
[1757788603957,0.3028,4637.1,4637.0,0.94259224]
[1757788604245,1.2179,4637.1,4637.0,3.594]
[1757788606474,0.3028,4637.1,4637.0,3.594]
[1757788606830,0.002,4637.1,4637.0,3.883]
[1757788608547,0.002,4637.1,4637.0,3.594]
[1757788610250,0.002,4637.1,4637.0,6.03956674]
[1757788610456,0.002,4637.1,4637.0,6.87614297]
[1757788610654,0.002,4637.1,4637.0,4.71957623]
[1757788611871,0.002,4637.1,4637.0,3.883]
[1757788612357,0.002,4637.1,4637.0,3.90456566]
[1757788612695,0.002,4637.1,4637.0,3.61556566]
[1757788613813,0.002,4637.1,4637.0,3.92756566]
[1757788614784,0.002,4637.1,4637.0,6.0841324]
[1757788614983,0.002,4637.1,4637.0,6.06256674]
[1757788615499,0.002,4637.1,4637.0,3.906]
[1757788615705,0.002,4637.1,4637.0,6.0841324]
[1757788615902,0.002,4637.1,4637.0,3.594]
[1757788616103,0.002,4637.1,4637.0,3.61556566]
[1757788616525,0.002,4637.1,4637.0,3.92756566]
[1757788618814,0.3008,4637.1,4637.0,3.61556566]
[1757788619015,0.002,4637.1,4637.0,3.92756566]
[1757788619506,0.002,4637.1,4637.0,6.0841324]
[1757788619701,0.002,4637.1,4637.0,6.06256674]
[1757788620423,0.002,4637.1,4637.0,3.906]
[1757788621425,0.002,4637.1,4637.0,3.594]
[1757788621725,0.3008,4637.1,4637.0,3.594]
[1757788622120,0.002,4637.1,4637.0,3.594]
[1757788622624,0.002,4637.1,4637.0,5.75056674]
[1757788623925,0.002,4637.1,4637.0,3.594]
[1757788624924,0.002,4637.1,4637.0,5.75056674]
[1757788625120,0.002,4637.1,4637.0,6.06256674]
[1757788626311,0.3008,4637.1,4637.0,3.594]
[1757788626514,0.7588,4637.1,4637.0,3.594]
[1757788626917,1.2096,4637.1,4637.0,3.594]
[1757788627933,1.2096,4637.1,4636.8,0.06229406]
[1757788628133,0.9088,4637.0,4636.9,3.593]
[1757788628335,1.2076,4637.0,4636.9,3.593]
[1757788628938,0.002,4637.1,4636.9,3.905]
[1757788629139,0.002,4637.1,4637.0,2.49435457]
[1757788629450,0.002,4637.1,4637.0,3.41580524]
[1757788629653,0.002,4637.1,4637.0,3.72780524]
[1757788630247,0.002,4637.1,4637.0,4.21680524]
[1757788630466,0.002,4637.1,4637.0,4.77160524]
[1757788630614,0.002,4637.1,4637.0,7.75003958]
[1757788631034,0.002,4637.1,4637.0,9.40503958]
[1757788631354,0.002,4637.1,4637.0,10.08983958]
[1757788631655,0.002,4637.1,4637.0,10.19703958]
[1757788632343,0.002,4637.1,4637.0,12.53721741]
[1757788633652,0.002,4637.1,4637.0,12.85343958]
[1757788636078,0.002,4637.1,4637.0,8.46843958]
[1757788636263,0.002,4637.1,4637.0,12.06043958]
[1757788637638,0.002,4637.1,4637.0,12.54503958]
[1757788637834,0.002,4637.1,4637.0,12.06043958]
[1757788638968,0.002,4637.1,4637.0,12.85243958]
[1757788639133,0.002,4637.1,4637.0,13.78843958]
[1757788639330,0.002,4637.4,4637.3,5.94842723]
[1757788639578,0.002,4637.4,4637.3,12.10300123]
[1757788639744,0.002,4637.4,4637.3,13.33260123]
[1757788642038,0.002,4637.4,4637.3,43.22540123]
[1757788642256,0.002,4637.6,4637.3,43.22540123]
[1757788642257,0.002,4637.6,4637.5,2.94833423]
[1757788642460,0.002,4637.6,4637.5,9.87811974]
[1757788642654,0.002,4637.6,4637.5,42.63720628]
[1757788643073,0.002,4637.6,4637.5,12.63720628]
[1757788643461,0.002,4638.1,4637.9,3.792]
[1757788643769,0.002,4638.1,4638.0,6.37578318]
[1757788643978,0.002,4638.1,4638.0,7.69102217]
[1757788644291,0.002,4638.1,4638.0,11.13184562]
[1757788644774,0.002,4639.3,4638.3,5.94796231]
[1757788644980,0.002,4639.3,4638.3,9.85618448]
[1757788645141,0.002,4639.3,4638.3,11.19298448]
[1757788645337,0.002,4639.3,4638.3,41.08578448]
[1757788645576,0.002,4639.3,4638.3,42.39636374]
[1757788645774,0.002,4639.3,4638.7,2.1557764]
[1757788645975,0.002,4639.3,4638.7,9.56133416]
[1757788646158,0.002,4639.3,4638.7,11.19279857]
[1757788647778,0.002,4639.3,4638.7,10.74139857]
[1757788647956,0.002,4639.3,4638.7,12.48252311]
[1757788648460,0.002,4639.3,4638.7,11.99792311]
[1757788649041,0.002,4639.3,4638.7,42.48252311]
[1757788649247,0.002,4639.3,4638.7,41.99792311]
[1757788649847,0.002,4639.3,4638.7,41.54652311]
[1757788650040,0.4314,4639.2,4638.7,41.54652311]
[1757788650272,0.4314,4639.2,4638.7,41.25292311]
[1757788650477,1.2067,4638.8,4638.3,1.20337926]
[1757788650662,0.9136,4638.7,4638.4,3.591]
[1757788650954,0.9136,4638.6,4638.5,3.591]
[1757788651160,1.2047,4638.6,4638.5,3.591]
[1757788653178,1.2047,4638.6,4638.5,6.32155991]
[1757788653475,0.2911,4638.6,4638.5,6.63778208]
[1757788653777,0.7733,4638.6,4638.5,4.48191273]
[1757788653956,0.7733,4638.6,4638.5,6.06309152]
[1757788655469,1.2047,4638.6,4638.5,6.06309152]
[1757788656646,0.002,4638.8,4638.7,2.1557764]
[1757788656876,0.002,4638.8,4638.7,6.08455633]
[1757788657080,0.002,4638.8,4638.7,6.06299857]
[1757788657485,0.2931,4638.8,4638.7,6.88488536]
[1757788658470,0.002,4638.8,4638.7,10.97048536]
[1757788658678,0.002,4638.8,4638.7,11.90648536]
[1757788660176,0.002,4638.8,4638.7,41.90648536]
[1757788660376,0.002,4638.8,4638.7,42.01368536]
[1757788661786,0.002,4639.3,4639.2,2.94754405]
[1757788662113,0.002,4639.3,4639.2,11.82507607]
[1757788662281,0.002,4639.3,4639.2,12.20432063]
[1757788662782,0.002,4639.3,4639.2,12.09712063]
[1757788662992,0.002,4639.3,4639.2,12.54852063]
[1757788666540,0.002,4639.8,4639.7,2.94731176]
[1757788666740,0.002,4639.8,4639.7,10.16981822]
[1757788666943,0.002,4639.8,4639.7,40.93766511]
[1757788667143,0.002,4639.8,4639.7,41.39606511]
[1757788667341,0.002,4639.8,4639.7,40.43976511]
[1757788667913,0.002,4639.8,4639.7,40.89816511]
[1757788668822,0.002,4639.8,4639.7,41.39606511]
[1757788669246,0.002,4639.8,4639.7,40.89816511]
[1757788669550,0.002,4639.8,4639.7,40.43976511]
[1757788670452,0.4759,4640.7,4640.6,2.15489376]
[1757788670649,0.5599,4640.8,4640.7,5.15484732]
[1757788670957,0.08,4640.8,4640.7,5.15484732]
[1757788671246,0.3754,4640.8,4640.7,5.47106949]
[1757788671438,1.2962,4640.8,4640.7,5.47106949]
[1757788671658,0.8553,4640.8,4640.7,6.97356209]
[1757788671837,0.3754,4640.8,4640.7,6.97356209]
[1757788672030,0.08,4640.8,4640.7,7.08250869]
[1757788672229,0.3754,4640.8,4640.7,7.08250869]
[1757788672947,0.3754,4640.8,4640.7,7.98170869]
[1757788674352,0.08,4640.8,4640.7,7.98170869]
[1757788674528,0.3754,4640.8,4640.7,7.98170869]
[1757788674850,1.2962,4640.8,4640.7,7.87276209]
[1757788675852,1.2962,4640.8,4640.7,7.08076209]
[1757788676050,1.2982,4640.8,4640.7,10.35353992]
[1757788677554,1.2982,4640.8,4640.7,10.66976209]
[1757788678258,0.082,4640.8,4640.7,10.66976209]
[1757788678635,0.3774,4640.8,4640.7,10.66976209]
[1757788679566,0.8183,4640.8,4640.7,10.66976209]
[1757788679856,1.2982,4640.8,4640.7,10.66976209]
[1757788680732,0.082,4640.8,4640.7,10.66976209]
[1757788681121,0.3774,4640.8,4640.7,10.66976209]
[1757788682443,0.8183,4640.8,4640.7,10.66976209]
[1757788683628,1.2982,4640.8,4640.7,10.66976209]
[1757788693778,1.2982,4640.8,4640.7,10.61976209]
[1757788693948,0.3774,4640.8,4640.7,10.61976209]
[1757788694273,0.3774,4640.8,4640.7,9.11726949]
[1757788695765,0.8369,4640.8,4640.7,6.96242217]
[1757788695944,1.3049,4640.8,4640.7,6.96242217]
[1757788696770,1.3049,4640.8,4640.7,9.11726949]
[1757788697650,1.3049,4640.8,4640.7,0.42342217]
[1757788697851,2.15484732,4640.7,4639.9,1.653]
[1757788698045,2.15498631,4640.5,4640.0,3.6962]
[1757788698241,0.3092,4640.1,4640.0,3.6962]
[1757788698446,1.2367,4640.1,4640.0,3.6962]
[1757788706474,0.468,4640.3,4640.0,3.589]
[1757788706805,0.4595,4640.2,4640.0,3.589]
[1757788707003,0.3092,4640.1,4640.0,3.589]
[1757788707185,0.3092,4640.1,4640.0,3.90522217]
[1757788707390,1.2367,4640.1,4640.0,3.90522217]
[1757788707981,1.2367,4640.1,4640.0,6.06039458]
[1757788708598,0.3092,4640.1,4640.0,6.06039458]
[1757788709812,0.3092,4640.1,4640.0,3.90522217]
[1757788710311,0.3092,4640.1,4640.0,6.06039458]
[1757788710480,0.7687,4640.1,4640.0,3.90522217]
[1757788710682,1.2367,4640.1,4640.0,3.90522217]
[1757788712086,1.2367,4640.1,4640.0,3.90622217]
[1757788713909,0.7772,4640.1,4640.0,3.90622217]
[1757788714231,1.2367,4640.1,4640.0,3.90622217]
[1757788717114,1.2367,4640.1,4640.0,0.31722217]
[1757788717318,1.2367,4640.1,4640.0,3.90622217]
[1757788717682,1.2367,4640.1,4640.0,3.59]
[1757788719221,3.73099497,4640.1,4640.0,0.001]
[1757788719423,3.39182596,4640.1,4640.0,0.001]
[1757788724510,6.98082596,4640.1,4640.0,0.001]
[1757788724817,7.06707031,4640.1,4640.0,0.001]
[1757788731146,6.98082596,4640.1,4640.0,0.001]
[1757788731443,7.89441427,4640.1,4640.0,0.001]
[1757788732943,7.9806642,4640.1,4640.0,0.001]
[1757788736838,14.49666419,4640.1,4640.0,0.001]
[1757788737413,8.75737588,4640.1,4640.0,0.2918]
[1757788737763,8.67112595,4640.1,4640.0,1.2327]
[1757788737958,6.51599999,4640.1,4640.0,1.2327]
[1757788738141,8.67112595,4640.1,4640.0,1.2327]
[1757788738343,8.67112595,4640.1,4640.0,0.2918]
[1757788740338,8.67112595,4640.1,4640.0,0.7769]
[1757788740339,6.51599999,4640.1,4640.0,0.7769]
[1757788740644,0.1072,4640.4,4640.0,1.54892217]
[1757788740848,0.1072,4640.4,4640.1,0.9409]
[1757788741056,2.26218809,4640.4,4640.1,0.9409]
[1757788741257,2.26218809,4640.4,4640.3,0.2908]
[1757788744354,0.1072,4640.4,4640.3,0.7466]
[1757788746933,0.1072,4640.4,4640.3,1.2317]
[1757788747534,0.1072,4640.4,4640.3,1.58921316]
[1757788747736,0.1072,4640.4,4640.3,1.2317]
[1757788748340,0.1072,4640.4,4640.3,0.2908]
[1757788749246,0.1072,4640.4,4640.3,0.7466]
[1757788749756,0.1072,4640.4,4640.3,0.2908]
[1757788749956,0.1072,4640.4,4640.3,1.2317]
[1757788750771,0.1072,4640.4,4640.3,0.7466]
[1757788754643,0.1072,4640.4,4640.3,0.2908]
[1757788756570,0.4203,4640.4,4640.0,0.001]
[1757788756879,0.851,4640.4,4640.0,0.001]
[1757788757283,0.4843,4640.3,4640.0,0.001]
[1757788757486,0.915,4640.3,4640.0,0.001]
[1757788757693,0.4843,4640.3,4640.0,0.001]
[1757788757991,2.57542596,4640.1,4640.0,0.001]
[1757788758586,3.49042596,4640.1,4640.0,0.001]
[1757788764994,7.07842596,4640.1,4640.0,0.001]
[1757788766165,4.9233,4640.1,4640.0,0.001]
[1757788766475,3.6952,4640.1,4640.0,0.001]
[1757788766677,3.6952,4640.1,4640.0,0.3037]
[1757788766879,3.6952,4640.1,4640.0,0.7701]
[1757788767387,0.1072,4640.1,4640.0,0.7701]
[1757788769490,0.1072,4640.1,4640.0,0.3037]
[1757788770483,0.1072,4640.1,4640.0,0.001]
[1757788770688,2.26232596,4640.1,4640.0,0.001]
[1757788770894,3.49042596,4640.1,4640.0,0.001]
[1757788771658,3.05972596,4640.1,4640.0,0.001]
[1757788771867,3.49042596,4640.1,4640.0,0.001]
[1757788776493,2.26232596,4640.1,4640.0,0.3037]
[1757788776895,2.57542596,4640.1,4640.0,0.001]
[1757788777199,1.3353,4640.1,4640.0,0.001]
[1757788777495,3.49042596,4640.1,4640.0,0.001]
[1757788780208,4.42239603,4640.1,4640.0,0.001]
[1757788781097,8.00939603,4640.1,4640.0,0.001]
[1757788781503,7.07742596,4640.1,4640.0,0.001]
[1757788783285,4.9223,4640.1,4640.0,0.001]
[1757788783492,4.0073,4640.1,4640.0,0.001]
[1757788784702,3.6942,4640.1,4640.0,0.3037]
[1757788785308,3.6942,4640.1,4640.0,1.2479]
[1757788785502,0.1072,4640.1,4640.0,1.2479]
[1757788785702,0.1072,4640.1,4640.0,0.3037]
[1757788786701,2.26232596,4640.1,4640.0,0.3037]
[1757788786901,0.1072,4640.1,4640.0,0.3037]
[1757788787889,0.1072,4640.1,4640.0,0.001]
[1757788788107,0.1072,4640.1,4640.0,0.3066]
[1757788792600,0.1072,4640.5,4640.0,3.70039458]
[1757788792799,0.1072,4640.5,4640.1,0.94395125]
[1757788792995,0.20385908,4640.7,4640.5,2.15490446]
[1757788792996,0.002,4640.7,4640.5,2.15490446]
[1757788793205,0.002,4640.7,4640.6,1.23114893]
[1757788793423,0.002,4640.7,4640.6,3.38604269]
[1757788793824,0.002,4640.7,4640.6,1.23114893]
[1757788794103,0.002,4640.7,4640.6,7.3998955]
[1757788794443,0.002,4640.7,4640.6,11.62454657]
[1757788798035,0.002,4640.7,4640.6,11.9276578]
[1757788798603,0.002,4640.7,4640.6,12.01384863]
[1757788798809,0.082,4640.8,4640.7,5.94684732]
[1757788799007,0.082,4640.8,4640.7,39.43182132]
[1757788799233,0.082,4640.8,4640.7,39.71902132]
[1757788803340,0.082,4640.8,4640.7,39.80520974]
[1757788807143,0.002,4641.7,4641.6,2.9464295]
[1757788807329,0.002,4641.7,4641.6,8.7160666]
[1757788807529,0.002,4641.7,4641.6,10.22034448]
[1757788807732,0.002,4641.7,4641.6,9.85934448]
[1757788807930,0.002,4641.7,4641.6,8.88789773]
[1757788808620,0.002,4641.7,4641.6,9.4913199]
[1757788811918,0.002,4641.7,4641.6,9.2041199]
[1757788812146,1.2388,4641.7,4641.6,9.2041199]
[1757788812350,1.2388,4641.7,4641.6,11.88789773]
[1757788812537,1.2388,4641.7,4641.6,11.80172231]
[1757788813121,1.2388,4641.7,4641.6,6.9146295]
[1757788813315,1.2388,4641.7,4641.6,10.4996295]
[1757788818348,1.2564,4641.7,4641.6,5.238]
[1757788820056,1.2564,4641.7,4641.6,1.653]
[1757788820231,1.2564,4641.7,4641.6,5.238]
[1757788821664,3.41082128,4641.7,4641.6,3.585]
[1757788821834,2.15443387,4641.6,4641.4,3.585]
[1757788822029,2.15443387,4641.6,4641.3,3.585]
[1757788822030,0.9626,4641.6,4641.3,3.585]
[1757788822235,0.2873,4641.4,4641.3,3.585]
[1757788822435,1.2499,4641.4,4641.3,3.585]
[1757788827896,0.002,4641.7,4641.3,3.585]
[1757788828053,0.002,4641.7,4641.3,4.19058674]
[1757788828253,0.9666,4641.6,4641.4,3.585]
[1757788828583,1.2711,4641.5,4641.4,3.585]
[1757788831552,0.3045,4641.5,4641.4,3.585]
[1757788833959,0.7769,4641.5,4641.4,3.585]
[1757788834155,1.2711,4641.5,4641.4,3.585]
[1757788834556,0.3045,4641.5,4641.4,3.585]
[1757788834775,0.002,4641.7,4641.4,3.585]
[1757788835376,0.002,4641.7,4641.4,6.05573669]
[1757788835555,0.002,4641.7,4641.4,3.90122217]
[1757788836459,0.002,4641.7,4641.4,6.05571013]
[1757788836687,0.002,4641.7,4641.5,2.15445271]
[1757788836889,0.002,4641.7,4641.6,3.585]
[1757788837292,0.002,4641.7,4641.6,3.9001]
[1757788838767,0.002,4641.7,4641.6,3.585]
[1757788838961,0.8007,4641.7,4641.6,3.585]
[1757788839161,1.2731,4641.7,4641.6,3.585]
[1757788841098,0.002,4641.7,4641.6,3.9001]
[1757788841301,0.002,4641.7,4641.6,6.0545295]
[1757788841799,0.002,4641.7,4641.6,6.37075167]
[1757788842589,0.002,4641.7,4641.6,4.21632217]
[1757788842790,0.002,4641.7,4641.6,6.37075167]
[1757788843401,0.002,4641.7,4641.6,4.21632217]
[1757788843614,0.7789,4641.7,4641.6,3.90122217]
[1757788843772,1.2731,4641.7,4641.6,3.585]
[1757788846170,0.2922,4641.7,4641.5,3.584]
[1757788846588,0.7626,4641.7,4641.5,3.584]
[1757788846790,0.9402,4641.6,4641.5,3.584]
[1757788846999,1.2304,4641.6,4641.5,3.584]
[1757788847785,1.2304,4641.6,4641.3,2.15556293]
[1757788847988,1.2304,4641.6,4641.4,3.584]
[1757788848304,0.76,4641.6,4641.4,3.584]
[1757788848522,1.2304,4641.6,4641.5,3.584]
[1757788850788,0.002,4641.7,4641.5,3.898]
[1757788850978,0.002,4641.7,4641.6,2.1544295]
[1757788851320,0.002,4641.7,4641.6,4.28174499]
[1757788851511,0.002,4641.7,4641.6,4.59574499]
[1757788851821,0.002,4641.7,4641.6,4.5742007]
[1757788852319,0.002,4641.7,4641.6,5.3662007]
[1757788853217,0.002,4641.7,4641.6,4.3996007]
[1757788853386,0.002,4641.7,4641.6,4.08337853]
[1757788853797,0.002,4641.7,4641.6,4.55107853]
[1757788854002,0.002,4641.7,4641.6,5.04997853]
[1757788854221,0.002,4641.7,4641.6,5.3662007]
[1757788855703,0.002,4641.7,4641.6,4.8985007]
[1757788855903,0.002,4641.7,4641.6,4.9745007]
[1757788856108,0.002,4641.7,4641.6,4.5068007]
[1757788857329,0.002,4641.7,4641.6,4.9745007]
[1757788858119,0.002,4641.7,4641.6,5.0057007]
[1757788858420,0.002,4641.7,4641.6,4.5068007]
[1757788859812,0.002,4641.7,4641.6,5.4734007]
[1757788860194,0.002,4641.7,4641.6,8.4734007]
[1757788860389,0.002,4641.7,4641.6,8.77651193]
[1757788860896,0.002,4641.7,4641.6,38.66931193]
[1757788861111,0.002,4641.7,4641.6,40.32209016]
[1757788861310,0.002,4641.7,4641.6,40.40826001]
[1757788861689,0.002,4641.7,4641.6,38.86268178]
[1757788862225,1e-08,4641.8,4641.7,6.56571649]
[1757788862421,1e-08,4641.8,4641.7,43.25546832]
[1757788862629,1e-08,4641.8,4641.7,43.56946832]
[1757788863127,1e-08,4641.8,4641.7,43.65563222]
[1757788863428,1e-08,4642.2,4642.1,5.94619745]
[1757788863597,1e-08,4642.2,4642.1,42.91357498]
[1757788863801,1e-08,4642.2,4642.1,44.30137498]
[1757788864808,1e-08,4642.2,4642.1,44.38753072]
[1757788866808,1e-08,4642.2,4642.1,43.91983072]
[1757788867038,0.49,4643.6,4643.2,5.94568711]
[1757788867203,0.4435,4643.3,4643.2,11.77725582]
[1757788867403,1.235,4643.3,4643.2,11.77725582]
[1757788868104,0.7935,4643.3,4643.2,12.09347799]
[1757788869118,0.002,4643.3,4643.2,12.40747799]
[1757788874614,0.3035,4643.3,4643.2,12.09347799]
[1757788874811,0.7935,4643.3,4643.2,12.09347799]
[1757788875028,1.235,4643.3,4643.2,12.09347799]
[1757788875836,0.3035,4643.3,4643.2,12.09347799]
[1757788876215,0.002,4643.3,4643.2,12.09347799]
[1757788876828,0.002,4643.3,4643.2,12.40227799]
[1757788877046,0.002,4643.3,4643.2,12.20067799]
[1757788877251,0.7753,4643.3,4643.2,12.20167799]
[1757788877541,1.2498,4643.3,4643.2,12.20167799]
[1757788880015,1.2498,4643.3,4643.2,11.09245582]
[1757788880215,1.2498,4643.3,4643.2,10.49788711]
[1757788883227,1.2498,4643.3,4643.2,10.81410928]
[1757788884265,1.2498,4643.3,4643.2,8.3432]
[1757788885334,1.2498,4643.3,4643.2,7.49688711]
[1757788886926,1.2498,4643.3,4643.2,7.81310928]
[1757788889236,1.2498,4643.3,4643.2,5.65942217]
[1757788889637,1.2498,4643.3,4643.2,7.81310928]
[1757788893764,1.2498,4643.3,4643.2,5.3432]
[1757788895267,1.2498,4643.3,4643.2,7.49688711]
[1757788895645,1.2498,4643.3,4643.2,5.3432]
[1757788897171,1.2498,4643.3,4643.2,7.49688711]
[1757788898149,1.2498,4643.3,4643.2,5.3432]
[1757788898561,1.2498,4643.3,4643.2,7.49688711]
[1757788898762,1.2498,4643.3,4643.2,5.3432]
[1757788899790,1.2498,4643.3,4643.2,7.49688711]
[1757788902001,1.2498,4643.3,4643.2,3.91388711]
[1757788902181,1.2498,4643.3,4643.2,7.49688711]
[1757788903286,0.3038,4643.3,4643.2,7.81310928]